bitfinex-derivatives/quotes_BNBF0:USTF0_20250709
["timestamp","ask_amount","ask_price","bid_price","bid_amount"]
[1752087845676,3.38254203,665.98,665.35,1.5400452]
[1752087845876,3.38254203,665.98,665.36,1.5400452]
[1752087846078,3.38254203,665.98,665.37,1.5400452]
[1752087846277,3.38254203,665.97,665.38,1.5400452]
[1752087846478,3.38254203,665.97,665.39,1.5400452]
[1752087846774,3.38254203,665.97,665.21,2.357]
[1752087846978,3.38254203,665.97,665.22,1.53935951]
[1752087847179,3.38254203,665.98,665.23,1.53935951]
[1752087847378,3.38254203,665.98,665.24,1.53935951]
[1752087847676,3.38254203,665.99,665.25,1.53935951]
[1752087847881,3.38254203,665.99,665.26,1.53935951]
[1752087848081,0.26144871,665.81,665.27,1.53935951]
[1752087848281,0.26144871,665.81,665.21,2.357]
[1752087848282,0.26144871,665.81,665.28,1.53935951]
[1752087848480,0.26144871,665.81,665.29,1.53935951]
[1752087848683,0.26144871,665.81,665.3,1.53935951]
[1752087848881,0.26144871,665.81,665.31,1.53935951]
[1752087849177,0.26144871,665.81,665.21,2.357]
[1752087849178,0.26144871,665.81,665.32,1.53935951]
[1752087849381,0.26144871,665.81,665.33,1.53935951]
[1752087849678,0.26144871,665.81,665.34,1.53935951]
[1752087849882,0.26144871,665.81,665.35,1.53935951]
[1752087850077,0.26144871,665.81,665.36,1.53935951]
[1752087850279,0.26144871,665.81,665.37,1.53935951]
[1752087850479,0.26144871,665.81,665.38,1.53935951]
[1752087850679,0.26144871,665.81,665.39,1.53935951]
[1752087850879,0.26144871,665.81,665.4,1.53935951]
[1752087851079,0.26144871,665.81,665.21,2.357]
[1752087851080,0.26144871,665.81,665.41,1.53935951]
[1752087851279,0.26144871,665.81,665.42,1.53935951]
[1752087851478,0.26144871,665.81,665.43,1.53935951]
[1752087851679,0.26144871,665.81,665.21,2.357]
[1752087851879,0.26144871,665.81,665.22,1.53870932]
[1752087852083,0.26144871,665.81,665.23,1.53870932]
[1752087852284,0.26144871,665.81,665.24,1.53870932]
[1752087852478,0.26144871,665.81,665.25,1.53870932]
[1752087852684,0.26144871,665.81,665.26,1.53870932]
[1752087852983,0.26144871,665.81,665.27,1.53870932]
[1752087853183,0.26144871,665.81,665.28,1.53870932]
[1752087853381,0.26144871,665.81,665.29,1.53870932]
[1752087853584,0.26144871,665.81,665.3,1.53870932]
[1752087853881,0.26144871,665.81,665.31,1.53870932]
[1752087854081,0.26144871,665.81,665.32,1.53870932]
[1752087854384,0.26144871,665.81,665.33,1.53870932]
[1752087854581,0.26144871,665.81,665.34,1.53870932]
[1752087854785,0.26144871,665.81,665.35,1.53870932]
[1752087854981,0.26144871,665.81,665.36,1.53870932]
[1752087855280,0.26144871,665.81,665.37,1.53870932]
[1752087855484,0.26144871,665.81,665.38,1.53870932]
[1752087855684,0.26144871,665.81,665.39,1.53870932]
[1752087855885,0.26144871,665.81,665.4,1.53870932]
[1752087856086,0.26144871,665.81,665.41,1.53870932]
[1752087856288,0.26144871,665.81,665.42,1.53870932]
[1752087856584,0.26144871,665.81,665.43,1.53870932]
[1752087856785,0.26144871,665.81,665.38,2.735]
[1752087856989,0.26144871,665.81,665.39,1.538665]
[1752087857289,0.26144871,665.81,665.4,1.538665]
[1752087857483,0.26144871,665.81,665.41,1.538665]
[1752087857685,0.26144871,665.81,665.42,1.538665]
[1752087857988,0.26144871,665.81,665.43,1.53862346]
[1752087858185,0.26144871,665.81,665.38,2.735]
[1752087858492,0.26144871,665.81,665.39,1.5390187]
[1752087858689,0.26144871,665.81,665.4,1.5390187]
[1752087858890,0.26144871,665.81,665.41,1.5390187]
[1752087859090,0.26144871,665.81,665.42,1.5390187]
[1752087859290,0.26144871,665.81,665.38,2.735]
[1752087859586,0.26144871,665.81,665.39,1.53895052]
[1752087859790,0.26144871,665.81,665.4,1.53895052]
[1752087859990,0.26144871,665.81,665.41,1.53895052]
[1752087860190,0.26144871,665.81,665.42,1.53895052]
[1752087860490,0.26144871,665.81,665.43,1.53895052]
[1752087860788,0.26144871,665.81,665.44,1.53895052]
[1752087860991,0.26144871,665.81,665.38,2.735]
[1752087861287,0.26144871,665.81,665.39,1.53893621]
[1752087861590,0.26144871,665.81,665.4,1.53893621]
[1752087861792,0.26144871,665.81,665.41,1.53893621]
[1752087861987,0.26144871,665.81,665.42,1.53893621]
[1752087862188,0.26144871,665.81,665.43,1.53893621]
[1752087862391,0.26144871,665.81,665.44,1.53893621]
[1752087862591,0.26144871,665.81,665.38,2.735]
[1752087862788,0.26144871,665.81,665.39,1.53889252]
[1752087862987,0.26144871,665.81,665.4,1.53889252]
[1752087863289,0.26144871,665.81,665.41,1.53889252]
[1752087863493,0.26144871,665.81,665.42,1.53889252]
[1752087863692,0.26144871,665.81,665.43,1.53889252]
[1752087863889,0.26144871,665.81,665.44,1.53889252]
[1752087864187,0.26144871,665.81,665.38,2.735]
[1752087864388,0.26144871,665.81,665.39,1.53886438]
[1752087864588,0.26144871,665.81,665.4,1.53886438]
[1752087864789,0.26144871,665.81,665.41,1.53886438]
[1752087864992,0.26144871,665.81,665.42,1.53886438]
[1752087865191,0.26144871,665.81,665.43,1.53886438]
[1752087865393,0.26144871,665.81,665.38,2.735]
[1752087865592,0.26144871,665.81,665.39,1.53885932]
[1752087865792,0.26144871,665.81,665.4,1.53885932]
[1752087865988,0.26144871,665.81,665.41,1.53885932]
[1752087866194,0.26144871,665.81,665.42,1.53885932]
[1752087866392,0.26144871,665.81,665.43,1.53885932]
[1752087866590,0.26144871,665.81,665.38,2.735]
[1752087866790,0.26144871,665.81,665.39,1.5388535]
[1752087867008,0.26144871,665.81,665.4,1.5388535]
[1752087867290,0.26144871,665.81,665.41,1.5388535]
[1752087867494,0.26144871,665.81,665.42,1.5388535]
[1752087867690,0.26144871,665.81,665.43,1.5388535]
[1752087867896,0.26144871,665.81,665.38,2.735]
[1752087868092,0.26144871,665.81,665.39,1.53884174]
[1752087868293,0.26144871,665.81,665.4,1.53884174]
[1752087868493,0.26144871,665.81,665.41,1.53884174]
[1752087868696,0.26144871,665.81,665.42,1.53884174]
[1752087868894,0.26144871,665.81,665.43,1.53884174]
[1752087869199,0.26144871,665.81,665.38,2.735]
[1752087869495,0.26144871,665.81,665.39,1.53889241]
[1752087869698,0.26144871,665.81,665.4,1.53889241]
[1752087869998,0.26144871,665.81,665.38,2.735]
[1752087869999,0.26144871,665.81,665.41,1.53889241]
[1752087870198,0.26144871,665.81,665.42,1.53889241]
[1752087870395,0.26144871,665.81,665.43,1.53889241]
[1752087870597,0.26144871,665.81,665.38,2.735]
[1752087870798,0.26144871,665.81,665.39,1.53915159]
[1752087871099,0.26144871,665.81,665.4,1.53915159]
[1752087871394,0.26144871,665.81,665.41,1.53915159]
[1752087871599,0.26144871,665.81,665.42,1.53915159]
[1752087871896,0.26144871,665.81,665.43,1.53915159]
[1752087872196,0.26144871,665.81,665.38,2.735]
[1752087872395,0.26144871,665.81,665.39,1.53915873]
[1752087872599,0.26144871,665.81,665.4,1.53915873]
[1752087872898,0.26144871,665.81,665.41,1.53915873]
[1752087873099,0.26144871,665.81,665.42,1.53915873]
[1752087873299,0.26144871,665.81,665.43,1.53915873]
[1752087873499,0.26144871,665.81,665.38,2.735]
[1752087873697,0.26144871,665.81,665.39,1.53918227]
[1752087873995,0.26144871,665.81,665.4,1.53918227]
[1752087874197,0.26144871,665.81,665.41,1.53918227]
[1752087874401,0.26144871,665.81,665.42,1.53918227]
[1752087874598,0.26144871,665.81,665.43,1.53918227]
[1752087874800,0.26144871,665.81,665.44,1.53918227]
[1752087874997,0.26144871,665.81,665.38,2.735]
[1752087875199,0.26144871,665.81,665.39,1.53920847]
[1752087875399,0.26144871,665.81,665.4,1.53920847]
[1752087875602,0.26144871,665.81,665.41,1.53920847]
[1752087875899,0.26144871,665.81,665.42,1.53920847]
[1752087876113,0.26144871,665.81,665.43,1.53920847]
[1752087876404,0.26144871,665.81,665.44,1.53920847]
[1752087876598,0.26144871,665.81,665.45,1.53920847]
[1752087876803,0.26144871,665.81,665.46,1.53920847]
[1752087877103,0.26144871,665.81,665.47,1.53920847]
[1752087877404,0.26144871,665.81,665.48,1.53920847]
[1752087877603,0.26144871,665.81,665.38,2.735]
[1752087877803,0.26144871,665.81,665.39,1.5389504]
[1752087878103,0.26144871,665.81,665.4,1.5389504]
[1752087878302,0.26144871,665.81,665.41,1.5389504]
[1752087878502,0.26144871,665.81,665.42,1.5389504]
[1752087878702,3.38254203,666.01,665.43,1.5389504]
[1752087878904,0.26141729,665.87,665.44,1.5389504]
[1752087879100,0.26141729,665.87,665.45,1.5389504]
[1752087879400,0.26141729,665.87,665.46,1.5389504]
[1752087879699,0.26141729,665.87,665.47,1.5389504]
[1752087879904,0.26141729,665.87,665.38,2.735]
[1752087880203,0.26141729,665.87,665.39,1.5389503]
[1752087880503,0.26141729,665.87,665.4,1.5389503]
[1752087880705,0.26141729,665.87,665.41,1.5389503]
[1752087880899,0.26141729,665.87,665.42,1.5389503]
[1752087881099,0.26141729,665.87,665.43,1.5389503]
[1752087881301,0.26141729,665.87,665.44,1.5389503]
[1752087881600,0.26141729,665.87,665.38,2.735]
[1752087881803,0.26141729,665.87,665.39,1.53897206]
[1752087882103,0.26141729,665.87,665.4,1.53897206]
[1752087882304,0.26141729,665.87,665.41,1.53897206]
[1752087882506,0.26141729,665.87,665.42,1.53897206]
[1752087882805,0.26141729,665.87,665.38,2.735]
[1752087882806,0.26141729,665.87,665.43,1.5390009]
[1752087883004,0.26141729,665.87,665.44,1.5390009]
[1752087883500,0.26141729,665.87,665.38,2.735]
[1752087883705,0.26141729,665.87,665.39,1.53903401]
[1752087883903,0.26141729,665.87,665.4,1.53903401]
[1752087884106,0.26141729,665.87,665.41,1.53903401]
[1752087884306,0.26141729,665.87,665.42,1.53903401]
[1752087884505,0.26141729,665.87,665.43,1.53903401]
[1752087884706,0.26141729,665.87,665.44,1.53903401]
[1752087885007,0.26141729,665.87,665.38,2.735]
[1752087885205,0.26141729,665.87,665.39,1.53905482]
[1752087885403,0.26141729,665.87,665.4,1.53905482]
[1752087885603,0.26141729,665.87,665.41,1.53905482]
[1752087885806,0.26141729,665.87,665.42,1.53905482]
[1752087886106,0.26141729,665.87,665.43,1.53905482]
[1752087886406,0.26141729,665.87,665.44,1.53905482]
[1752087886604,0.26141729,665.87,665.45,1.53905482]
[1752087886802,0.26141729,665.87,665.38,2.735]
[1752087887008,0.26141729,665.87,665.39,1.53915014]
[1752087887207,0.26141729,665.87,665.4,1.53915014]
[1752087887508,0.26141729,665.87,665.41,1.53915014]
[1752087887706,0.26141729,665.87,665.42,1.53915014]
[1752087887906,0.26141729,665.87,665.43,1.53915014]
[1752087888105,0.26141729,665.87,665.44,1.53915014]
[1752087888308,0.26141729,665.87,665.45,1.53915014]
[1752087888605,0.26141729,665.87,665.38,2.735]
[1752087888804,0.26141729,665.87,665.39,1.53929066]
[1752087889009,0.26141729,665.87,665.4,1.53929066]
[1752087889207,0.26141729,665.87,665.41,1.53929066]
[1752087889409,0.26141729,665.87,665.42,1.53929066]
[1752087889611,0.26141729,665.87,665.43,1.53929066]
[1752087889911,0.26141729,665.87,665.44,1.53929066]
[1752087890110,0.26141729,665.87,665.45,1.53929066]
[1752087890310,0.26141729,665.87,665.46,1.53929066]
[1752087890510,0.26141729,665.87,665.47,1.53929066]
[1752087890712,0.26141729,665.87,665.48,1.53929066]
[1752087891008,0.26141729,665.87,665.49,1.53929066]
[1752087891307,0.26141729,665.87,665.5,1.53929066]
[1752087891511,0.26141729,665.87,665.51,1.53929066]
[1752087891711,0.26141729,665.87,665.52,1.53929066]
[1752087891911,0.26141729,665.87,665.38,2.735]
[1752087892108,0.26141729,665.87,665.39,1.53945358]
[1752087892412,0.26141729,665.87,665.38,2.735]
[1752087892413,0.26141729,665.87,665.4,1.53945358]
[1752087892613,0.26141729,665.87,665.41,1.53945358]
[1752087892912,0.26141729,665.87,665.42,1.53945358]
[1752087893112,0.26141729,665.87,665.38,2.735]
[1752087893113,0.26141729,665.87,665.43,1.53945358]
[1752087893310,0.26141729,665.87,665.44,1.53945358]
[1752087893613,0.26141729,665.87,665.45,1.53945358]
[1752087893812,0.26141729,665.87,665.46,1.53945358]
[1752087894014,0.26141729,665.87,665.47,1.53945358]
[1752087894214,0.26141729,665.87,665.48,1.53968847]
[1752087894514,0.26141729,665.87,665.49,1.53968847]
[1752087894712,0.26141729,665.87,665.5,1.53968847]
[1752087894914,0.26141729,665.87,665.51,1.53968847]
[1752087895115,0.26141729,665.87,665.52,1.53968847]
[1752087895315,0.26141729,665.87,665.53,1.53968847]
[1752087895616,0.26141729,665.87,665.38,2.735]
[1752087895819,0.26141729,665.87,665.39,1.53996318]
[1752087896011,0.26141729,665.87,665.4,1.53996318]
[1752087896211,0.26141729,665.87,665.41,1.53996318]
[1752087896412,0.26141729,665.87,665.42,1.53996318]
[1752087896617,0.26141729,665.87,665.43,1.53996318]
[1752087896914,0.26141729,665.87,665.38,2.735]
[1752087896915,0.26141729,665.87,665.44,1.53996318]
[1752087897215,0.26141729,665.87,665.45,1.53996318]
[1752087897413,0.26141729,665.87,665.46,1.53996318]
[1752087897614,0.26141729,665.87,665.47,1.53996318]
[1752087897814,0.26141729,665.87,665.48,1.53996318]
[1752087898113,0.26141729,665.87,665.49,1.53996318]
[1752087898317,0.26141729,665.87,665.5,1.53996318]
[1752087898514,0.26141729,665.87,665.38,2.735]
[1752087898515,0.26141729,665.87,665.51,1.53996318]
[1752087898717,0.26141729,665.87,665.52,1.53996318]
[1752087898918,0.26141729,665.87,665.53,1.53996318]
[1752087899116,0.26141729,665.87,665.38,2.735]
[1752087899314,0.26141729,665.87,665.39,1.53983877]
[1752087899513,0.26141729,665.87,665.4,1.53983877]
[1752087899711,0.26141729,665.87,665.41,1.53983877]
[1752087899911,0.26141729,665.87,665.42,1.53983877]
[1752087900116,0.26141729,665.87,665.43,1.53983877]
[1752087900411,0.26141729,665.87,665.44,1.53983877]
[1752087900616,0.26141729,665.87,665.45,1.53983877]
[1752087900814,0.26141729,665.87,665.46,1.53983877]
[1752087901016,0.26141729,665.87,665.38,2.735]
[1752087901017,0.26141729,665.87,665.47,1.53983877]
[1752087901217,0.26141729,665.87,665.48,1.53983877]
[1752087901414,0.26141729,665.87,665.49,1.53983877]
[1752087901618,0.26141729,665.87,665.5,1.53983877]
[1752087901812,0.26141729,665.87,665.51,1.53983877]
[1752087902014,0.26141729,665.87,665.52,1.53983877]
[1752087902314,0.26141729,665.87,665.38,2.735]
[1752087902515,0.26141729,665.87,665.39,1.53969951]
[1752087902728,0.26141729,665.87,665.4,1.53969951]
[1752087902916,0.26141729,665.87,665.41,1.53969951]
[1752087903120,0.26141729,665.87,665.42,1.53969951]
[1752087903419,0.26141729,665.87,665.43,1.53969951]
[1752087903726,0.26141729,665.87,665.44,1.53969951]
[1752087904017,0.26141729,665.87,665.38,2.735]
[1752087904018,0.26141729,665.87,665.45,1.53969951]
[1752087904215,0.26141729,665.87,665.46,1.53969951]
[1752087904416,0.26141729,665.87,665.47,1.53969951]
[1752087904619,0.26141729,665.87,665.48,1.53969951]
[1752087904916,0.26141729,665.87,665.49,1.53969951]
[1752087905215,0.26141729,665.87,665.25,1.68145465]
[1752087905216,0.26141729,665.87,665.5,1.53969951]
[1752087905417,0.26141729,665.87,665.51,1.53969951]
[1752087905621,0.26141729,665.87,665.12,2.24647989]
[1752087905821,0.26141729,665.87,665.26,1.68078948]
[1752087906018,0.26141729,665.87,665.27,1.53927509]
[1752087906318,0.26141729,665.87,665.28,1.53927509]
[1752087906621,0.26141729,665.87,665.29,1.53927509]
[1752087906819,0.26141729,665.87,665.3,1.53927509]
[1752087907020,0.26141729,665.87,665.31,1.53927509]
[1752087907223,0.26141729,665.87,665.32,1.53927509]
[1752087907422,0.26141729,665.87,665.33,1.53927509]
[1752087907623,0.26141729,665.87,665.34,1.53927509]
[1752087907822,0.26141729,665.87,665.35,1.53927509]
[1752087908118,0.26141729,665.87,665.36,1.53927509]
[1752087908320,0.26141729,665.87,665.37,1.53927509]
[1752087908627,0.26141729,665.87,665.38,1.53927509]
[1752087908925,0.26141729,665.87,665.39,1.53927509]
[1752087909126,0.26141729,665.87,665.4,1.53927509]
[1752087909325,0.26141729,665.87,665.41,1.53927509]
[1752087909526,0.26141729,665.87,665.42,1.53927509]
[1752087909821,0.26141729,665.87,665.43,1.53927509]
[1752087910025,0.26141729,665.87,665.44,1.53927509]
[1752087910225,0.26141729,665.87,665.45,1.53927509]
[1752087910526,0.26141729,665.87,665.46,1.53927509]
[1752087910827,0.26141729,665.87,665.47,1.53927509]
[1752087911025,0.26141729,665.87,665.3,2.004]
[1752087911026,0.26141729,665.87,665.48,1.53927509]
[1752087911230,0.26141729,665.87,665.49,1.53927509]
[1752087911430,0.26141729,665.87,665.5,1.53964438]
[1752087911625,0.26141729,665.87,665.51,1.53964438]
[1752087911831,0.26141729,665.87,665.52,1.53964438]
[1752087912130,0.26141729,665.87,665.53,1.53964438]
[1752087912432,0.26141729,665.87,665.3,2.004]
[1752087912630,0.26141729,665.87,665.31,1.53964183]
[1752087912936,0.26141729,665.87,665.32,1.53964183]
[1752087913227,0.26141729,665.87,665.33,1.53964183]
[1752087913432,0.26141729,665.87,665.34,1.53964183]
[1752087913633,0.26141729,665.87,665.35,1.53964183]
[1752087913832,0.26141729,665.87,665.36,1.53964183]
[1752087914132,0.26141729,665.87,665.37,1.53964183]
[1752087914333,0.26141729,665.87,665.38,1.53964183]
[1752087914628,0.26141729,665.87,665.39,1.53964183]
[1752087914833,0.26141729,665.87,665.4,1.53964183]
[1752087915031,0.26141729,665.87,665.3,2.004]
[1752087915032,0.26141729,665.87,665.41,1.53964183]
[1752087915228,0.26141729,665.87,665.42,1.53964183]
[1752087915433,0.26141729,665.87,665.43,1.53964183]
[1752087915631,0.26141729,665.87,665.44,1.53964183]
[1752087915834,0.26141729,665.87,665.45,1.53964183]
[1752087916034,0.26141729,665.87,665.46,1.53964183]
[1752087916235,0.26141729,665.87,665.47,1.53964183]
[1752087916534,0.26141729,665.87,665.48,1.53964183]
[1752087916734,0.26141729,665.87,665.49,1.53964183]
[1752087916934,0.26141729,665.87,665.5,1.53964183]
[1752087917234,0.26141729,665.87,665.51,1.54007294]
[1752087917534,0.26141729,665.87,665.52,1.54007294]
[1752087917830,0.26141729,665.87,665.53,1.54007294]
[1752087918031,0.26141729,665.87,665.54,1.54007294]
[1752087918235,0.26141729,665.87,665.55,1.54007294]
[1752087918434,0.26141729,665.87,665.56,1.54007294]
[1752087918637,0.26141729,665.87,665.57,1.54007294]
[1752087918835,0.26141729,665.87,665.3,2.004]
[1752087919038,0.26141729,665.87,665.31,1.53982185]
[1752087919233,0.26141729,665.87,665.32,1.53982185]
[1752087919532,0.26141729,665.87,665.33,1.53982185]
[1752087919736,0.26141729,665.87,665.34,1.53982185]
[1752087919933,0.26141729,665.87,665.35,1.53982185]
[1752087920135,0.26141729,665.87,665.36,1.53982185]
[1752087920337,0.26141729,665.87,665.37,1.53982185]
[1752087920536,0.26141729,665.87,665.38,1.53982185]
[1752087920735,0.26141729,665.87,665.39,1.53982185]
[1752087921043,0.26141729,665.87,665.4,1.53982185]
[1752087921236,0.26141729,665.87,665.41,1.53982185]
[1752087921540,0.26141729,665.87,665.42,1.53982185]
[1752087921841,0.26141729,665.87,665.43,1.53982185]
[1752087922141,0.26141729,665.87,665.44,1.53982185]
[1752087922437,0.26141729,665.87,665.45,1.53982185]
[1752087922641,0.26141729,665.87,665.46,1.53982185]
[1752087922840,0.26141729,665.87,665.47,1.53979969]
[1752087923042,0.26141729,665.87,665.48,1.53979969]
[1752087923338,0.26141729,665.87,665.49,1.53979969]
[1752087923538,0.26141729,665.87,665.5,1.53979969]
[1752087923738,0.26141729,665.87,665.51,1.53979969]
[1752087923943,0.26141729,665.87,665.52,1.53979969]
[1752087924140,0.26141729,665.87,665.53,1.53979969]
[1752087924444,0.26141729,665.87,665.54,1.53979969]
[1752087924641,0.26141729,665.87,665.55,1.53979969]
[1752087924944,0.26141729,665.87,665.56,1.53979969]
[1752087925141,0.26141729,665.87,665.57,1.53979969]
[1752087925441,0.26141729,665.87,665.3,2.004]
[1752087925640,0.26141729,665.87,665.31,1.53980234]
[1752087925944,0.26141729,665.87,665.32,1.53980234]
[1752087926144,0.26141729,665.87,665.3,2.004]
[1752087926145,0.26141729,665.87,665.33,1.53980234]
[1752087926444,0.26141729,665.87,665.34,1.53980234]
[1752087926644,0.26141729,665.87,665.35,1.53980234]
[1752087926841,0.26141729,665.87,665.36,1.53980234]
[1752087927141,0.26141729,665.87,665.37,1.53980234]
[1752087927341,0.26141729,665.87,665.38,1.53980234]
[1752087927644,0.26141729,665.87,665.39,1.53980234]
[1752087927940,0.26141729,665.87,665.4,1.53980234]
[1752087928241,0.26141729,665.87,665.41,1.53980234]
[1752087928445,0.26141729,665.87,665.42,1.53980234]
[1752087928745,0.26141729,665.87,665.43,1.53980234]
[1752087929041,0.26141729,665.87,665.3,2.004]
[1752087929042,0.26141729,665.87,665.44,1.53980234]
[1752087929240,0.26141729,665.87,665.45,1.53980234]
[1752087929445,0.26141729,665.87,665.46,1.53980234]
[1752087929742,0.26141729,665.87,665.47,1.53980234]
[1752087929940,0.26141729,665.87,665.48,1.53980234]
[1752087930140,0.26141729,665.87,665.49,1.53980234]
[1752087930344,0.26141729,665.87,665.5,1.53980234]
[1752087930544,0.26141729,665.87,665.51,1.53980234]
[1752087930745,0.26141729,665.87,665.52,1.53980234]
[1752087930945,0.26141729,665.87,665.3,2.004]
[1752087931146,0.26141729,665.87,665.31,1.53997737]
[1752087931342,0.26141729,665.87,665.32,1.53997737]
[1752087931546,0.26141729,665.87,665.33,1.53997737]
[1752087931747,0.26141729,665.87,665.34,1.53997737]
[1752087932046,0.26141729,665.87,665.35,1.53997737]
[1752087932343,0.26141729,665.87,665.36,1.53997737]
[1752087932546,0.26141729,665.87,665.37,1.53997737]
[1752087932746,0.26141729,665.87,665.38,1.53997737]
[1752087932946,0.26141729,665.87,665.39,1.53997737]
[1752087933248,0.26141729,665.87,665.4,1.53997737]
[1752087933542,0.26141729,665.87,665.41,1.53997737]
[1752087933743,0.26141729,665.87,665.42,1.53997737]
[1752087933946,0.26141729,665.87,665.43,1.53997737]
[1752087934144,0.26141729,665.87,665.44,1.53997737]
[1752087934344,0.26141729,665.87,665.45,1.53822053]
[1752087934545,0.26141729,665.87,665.46,1.53822053]
[1752087934747,0.26141729,665.87,665.47,1.53822053]
[1752087934948,0.26141729,665.87,665.48,1.53822053]
[1752087935148,0.26141729,665.87,665.49,1.53822053]
[1752087935357,0.26141729,665.87,665.5,1.53822053]
[1752087935647,0.26141729,665.87,665.51,1.53822053]
[1752087935844,0.26141729,665.87,665.52,1.53822053]
[1752087936048,0.26141729,665.87,665.53,1.53822053]
[1752087936249,0.26141729,665.87,665.46,2.193]
[1752087936445,0.26141729,665.87,665.47,1.53847212]
[1752087936644,0.26141729,665.87,665.48,1.53847212]
[1752087936849,0.26141729,665.87,665.49,1.53847212]
[1752087937049,0.26141729,665.87,665.5,1.53847212]
[1752087937345,0.26141729,665.87,665.51,1.53847212]
[1752087937546,0.26141729,665.87,665.52,1.53847212]
[1752087937749,0.26141729,665.87,665.53,1.53847212]
[1752087938049,0.26141729,665.87,665.46,2.193]
[1752087958764,0.26141729,665.87,665.09,1.68220381]
[1752087958965,0.26141729,665.87,665.1,1.53829236]
[1752087959265,0.26141729,665.87,665.09,1.68220381]
[1752087959266,0.26141729,665.87,665.11,1.53829236]
[1752087959469,0.26141729,665.87,665.12,1.53829236]
[1752087959665,0.26141729,665.87,665.13,1.53829236]
[1752087959870,0.26141729,665.87,665.14,1.53829236]
[1752087960071,0.26141729,665.87,665.15,1.53829236]
[1752087960268,0.26141729,665.87,665.16,1.53829236]
[1752087960466,0.26141729,665.87,665.17,1.53829236]
[1752087960677,0.26141729,665.87,665.18,1.53829236]
[1752087960866,0.26141729,665.87,665.19,1.53829236]
[1752087961171,0.26141729,665.87,665.2,1.53829236]
[1752087961470,0.26141729,665.87,665.21,1.53829236]
[1752087961770,0.26141729,665.87,665.22,3.83029236]
[1752087962066,0.26141729,665.87,665.23,1.53829236]
[1752087962269,0.26141729,665.87,665.24,1.53829236]
[1752087962466,0.26141729,665.87,665.25,1.53829236]
[1752087962766,0.26141729,665.87,665.26,1.53829236]
[1752087963066,0.26141729,665.87,665.27,1.53422361]
[1752087963367,0.26141729,665.87,665.28,1.53422361]
[1752087963566,0.26141729,665.87,665.29,1.53422361]
[1752087963771,0.26141729,665.87,665.3,1.53422361]
[1752087963972,0.26141729,665.87,665.22,2.292]
[1752087964172,0.26141729,665.87,665.23,1.53417737]
[1752087964372,0.26141729,665.87,665.24,1.53417737]
[1752087964571,0.26141729,665.87,665.25,1.53417737]
[1752087964870,0.26141729,665.87,665.26,1.53417737]
[1752087965169,0.26141729,665.87,665.27,1.53417737]
[1752087965370,0.26141729,665.87,665.28,1.53417737]
[1752087965570,0.26141729,665.87,665.29,1.53417737]
[1752087965868,0.26141729,665.87,665.3,1.53417737]
[1752087966071,0.26141729,665.87,665.22,2.292]
[1752087966271,0.26141729,665.87,665.23,1.53385717]
[1752087966469,0.26141729,665.87,665.24,1.53385717]
[1752087966672,0.26141729,665.87,665.25,1.53385717]
[1752087966972,0.26141729,665.87,665.26,1.53385717]
[1752087967170,0.26141729,665.87,665.27,1.53385717]
[1752087967368,0.26141729,665.87,665.28,1.53385717]
[1752087967569,0.26141729,665.87,665.29,1.53385717]
[1752087967882,0.26141729,665.87,665.22,2.292]
[1752087968074,0.26141729,665.87,665.23,1.53379606]
[1752087968370,0.26141729,665.87,665.24,1.53379606]
[1752087968569,0.26141729,665.87,665.25,1.53379606]
[1752087968773,0.26141729,665.87,665.26,1.53379606]
[1752087968972,0.26141729,665.87,665.27,1.53379606]
[1752087969170,0.26141729,665.87,665.28,1.53379606]
[1752087969370,0.26141729,665.87,665.29,1.53379606]
[1752087969573,0.26141729,665.87,665.22,2.292]
[1752087969772,0.26141729,665.87,665.23,1.53375188]
[1752087970078,0.26141729,665.87,665.24,1.53375188]
[1752087970272,0.26141729,665.87,665.25,1.53375188]
[1752087970473,0.26141729,665.87,665.26,1.53375188]
[1752087970777,0.26141729,665.87,665.27,1.53375188]
[1752087970977,0.26141729,665.87,665.22,2.292]
[1752087970978,0.26141729,665.87,665.28,1.53375188]
[1752087971171,0.26141729,665.87,665.29,1.53375188]
[1752087971376,0.26141729,665.87,665.3,1.53375188]
[1752087971673,0.26141729,665.87,665.31,1.53375188]
[1752087971876,0.26141729,665.87,665.32,1.53375188]
[1752087972077,0.26141729,665.87,665.33,1.53375188]
[1752087972379,0.26141729,665.87,665.22,2.292]
[1752087972577,0.26141729,665.87,665.23,1.53372085]
[1752087972776,0.26141729,665.87,665.24,1.53372085]
[1752087972972,0.26141729,665.87,665.25,1.53372085]
[1752087973179,0.26141729,665.87,665.26,1.53372085]
[1752087973375,0.26141729,665.87,665.27,1.53372085]
[1752087973573,0.26141729,665.87,665.28,1.53372085]
[1752087973778,0.26141729,665.87,665.29,1.53372085]
[1752087973981,0.26141729,665.87,665.3,1.53372085]
[1752087974278,0.26141729,665.87,665.31,1.53372085]
[1752087974478,0.26141729,665.87,665.32,1.53372085]
[1752087974675,0.26141729,665.87,665.33,1.53372085]
[1752087974874,0.26141729,665.87,665.22,2.292]
[1752087975072,0.26141729,665.87,665.23,1.53371738]
[1752087975280,0.26141729,665.87,665.24,1.53371738]
[1752087975474,0.26141729,665.87,665.25,1.53371738]